fUST/lending_fUST_20250702
["ID","MTS","AMOUNT","RATE_DAILY","PERIOD"]
[368945008,1751405226780,-500.0,0.00017264,2]
[368945009,1751405226803,-500.0,0.00017264,2]
[368945010,1751405226824,-290.11097276,0.00017264,2]
[368945011,1751405249118,-209.88902724,0.00017264,2]
[368945012,1751405249140,-457.57660697,0.00017264,2]
[368945013,1751405252079,-42.42339303,0.00017264,2]
[368945014,1751405252100,-500.0,0.00017264,2]
[368945015,1751405252122,-358.0356871,0.00017264,2]
[368945031,1751405432127,-300.0,0.00017264,2]
[368945032,1751405432138,-625.0,0.00017264,2]
[368945033,1751405432149,-237.28538769,0.00017264,2]
[368945034,1751405432163,-222.71461231,0.00017264,2]
[368945035,1751405432173,-141.9643129,0.00017264,2]
[368945036,1751405432184,-500.0,0.00017264,2]
[368945037,1751405432193,-500.0,0.00017264,2]
[368945038,1751405432203,-1107.50317192,0.00017265,2]
[368945039,1751405432224,-1249.35049649,0.00017265,2]
[368945040,1751405432236,-3277.78919072,0.00017265,2]
[368945042,1751405432246,-460.0,0.00017265,2]
[368945044,1751405432255,-460.0,0.00017265,2]
[368945046,1751405432265,-497.57,0.00017265,2]
[368945047,1751405432274,-507.03,0.00017265,2]
[368945049,1751405432285,-79.13847119,0.00017265,2]
[368945050,1751405432297,-380.86152881,0.00017265,2]
[368945051,1751405432306,-235.86310216,0.00017265,2]
[368945052,1751405432319,-224.13689784,0.00017265,2]
[368945053,1751405432328,-286.76310216,0.00017265,2]
[368945062,1751405438296,-173.23689784,0.00017265,2]
[368945063,1751405438307,-460.0,0.00017265,2]
[368945064,1751405438523,-460.0,0.00017265,2]
[368945065,1751405438533,-460.0,0.00017265,2]
[368945066,1751405438543,-460.0,0.00017265,2]
[368945067,1751405438553,-460.0,0.00017265,2]
[368945068,1751405438562,-460.0,0.00017265,2]
[368945069,1751405438572,-460.0,0.00017265,2]
[368945070,1751405438581,-460.0,0.00017265,2]
[368945071,1751405438591,-460.0,0.00017265,2]
[368945072,1751405438600,-460.0,0.00017265,2]
[368945073,1751405438610,-331.67082645,0.00017265,2]
[368945074,1751405438619,-460.0,0.00017265,2]
[368945075,1751405438628,-460.0,0.00017265,2]
[368945076,1751405438638,-460.0,0.00017265,2]
[368945077,1751405438648,-460.0,0.00017265,2]
[368945078,1751405438657,-413.02015429,0.00017265,2]
[368945079,1751405438667,-460.0,0.00017265,2]
[368945080,1751405438676,-460.0,0.00017265,2]
[368945081,1751405438686,-460.0,0.00017265,2]
[368945082,1751405438695,-460.0,0.00017265,2]
[368945083,1751405438704,-460.0,0.00017265,2]
[368945084,1751405438714,-460.0,0.00017265,2]
[368945085,1751405438723,-460.0,0.00017265,2]
[368945086,1751405438734,-460.0,0.00017265,2]
[368945087,1751405438743,-460.0,0.00017265,2]
[368945088,1751405438752,-460.0,0.00017265,2]
[368945089,1751405438762,-570.58,0.00017265,2]
[368945090,1751405438771,-460.0,0.00017266,2]
[368945091,1751405438780,-460.0,0.00017266,2]
[368945092,1751405438790,-577.95137339,0.00017266,2]
[368945093,1751405438799,-460.0,0.00017266,2]
[368945094,1751405438808,-460.0,0.00017266,2]
[368945095,1751405438818,-460.0,0.00017266,2]
[368945096,1751405438828,-460.0,0.00017266,2]
[368945097,1751405438837,-460.0,0.00017266,2]
[368945098,1751405438847,-460.0,0.00017266,2]
[368945099,1751405438856,-460.0,0.00017266,2]
[368945100,1751405438865,-460.0,0.00017266,2]
[368945101,1751405438874,-460.0,0.00017266,2]
[368945102,1751405438886,-460.0,0.00017266,2]
[368945103,1751405438896,-460.0,0.00017266,2]
[368945104,1751405438906,-460.0,0.00017266,2]
[368945105,1751405438915,-460.0,0.00017266,2]
[368945106,1751405438925,-176.05171623,0.00017266,2]
[368945107,1751405439035,-283.94828377,0.00017266,2]
[368945108,1751405439044,-460.0,0.00017266,2]
[368945109,1751405439053,-460.0,0.00017266,2]
[368945110,1751405439063,-460.0,0.00017266,2]
[368945111,1751405439072,-460.0,0.00017266,2]
[368945112,1751405439081,-428.54,0.00017266,2]
[368945113,1751405439091,-460.0,0.00017266,2]
[368945114,1751405439100,-460.0,0.00017266,2]
[368945115,1751405439109,-92.77574528,0.00017266,2]
[368945162,1751405440379,-460.0,0.00017264,2]
[368945164,1751405440390,-367.22425472,0.00017266,2]
[368945166,1751405440399,-460.0,0.00017266,2]
[368945168,1751405440409,-460.0,0.00017266,2]
[368945170,1751405440419,-460.0,0.00017266,2]
[368945172,1751405440428,-460.0,0.00017266,2]
[368945174,1751405440437,-460.0,0.00017266,2]
[368945176,1751405440447,-460.0,0.00017266,2]
[368945178,1751405440456,-460.0,0.00017266,2]
[368945180,1751405440465,-460.0,0.00017266,2]
[368945182,1751405440475,-460.0,0.00017266,2]
[368945184,1751405440488,-460.0,0.00017266,2]
[368945186,1751405440497,-460.0,0.00017266,2]
[368945188,1751405440507,-460.0,0.00017266,2]
[368945190,1751405440516,-460.0,0.00017266,2]
[368945192,1751405440525,-460.0,0.00017266,2]
[368945194,1751405440534,-460.0,0.00017266,2]
[368945196,1751405440544,-460.0,0.00017266,2]
[368945198,1751405440554,-460.0,0.00017266,2]
[368945200,1751405440563,-460.0,0.00017266,2]
[368945202,1751405440573,-460.0,0.00017266,2]
[368945204,1751405440583,-460.0,0.00017266,2]
[368945206,1751405440593,-460.0,0.00017266,2]
[368945208,1751405440603,-460.0,0.00017266,2]
[368945210,1751405440612,-460.0,0.00017266,2]
[368945212,1751405440622,-460.0,0.00017266,2]
[368945214,1751405440631,-460.0,0.00017266,2]
[368945216,1751405440641,-661.76,0.00017266,2]
[368945218,1751405440650,-460.0,0.00017266,2]
[368945220,1751405440659,-460.0,0.00017266,2]
[368945222,1751405440669,-626.22,0.00017266,2]
[368945224,1751405440678,-460.0,0.00017266,2]
[368945226,1751405440687,-460.0,0.00017266,2]
[368945228,1751405440697,-460.0,0.00017266,2]
[368945230,1751405440707,-460.0,0.00017266,2]
[368945232,1751405440716,-460.0,0.00017266,2]
[368945233,1751405440728,-460.0,0.00017266,2]
[368945235,1751405440737,-460.0,0.00017266,2]
[368945237,1751405440747,-177.4536902,0.00017266,2]
[368945241,1751405440888,-460.0,0.00017267,2]
[368945242,1751405440900,-460.0,0.00017267,2]
[368945243,1751405440910,-460.0,0.00017267,2]
[368945244,1751405440920,-460.0,0.00017267,2]
[368945245,1751405440929,-460.0,0.00017267,2]
[368945246,1751405440939,-419.06159599,0.00017267,2]
[368945247,1751405440948,-460.0,0.00017267,2]
[368945248,1751405440957,-460.0,0.00017267,2]
[368945249,1751405440967,-425.55643975,0.00017267,2]
[368945250,1751405440976,-460.0,0.00017267,2]
[368945251,1751405440986,-460.0,0.00017267,2]
[368945252,1751405440994,-460.0,0.00017267,2]
[368945253,1751405441003,-460.0,0.00017267,2]
[368945254,1751405441012,-460.0,0.00017267,2]
[368945255,1751405441022,-524.51021353,0.00017267,2]
[368945256,1751405441031,-291.01243297,0.00017267,2]
[368945257,1751405441040,-166.77742807,0.00017268,2]
[368945258,1751405441050,-555.43033456,0.00017268,2]
[368945259,1751405441059,-460.0,0.00017269,2]
[368945260,1751405441069,-460.0,0.00017269,2]
[368945262,1751405441078,-460.0,0.00017269,2]
[368945264,1751405441089,-460.0,0.00017269,2]
[368945266,1751405441099,-460.0,0.00017269,2]
[368945268,1751405441108,-636.36387393,0.00017273,2]
[368945270,1751405441117,-500.0,0.00017273,2]
[368945272,1751405441126,-500.0,0.00017273,2]
[368945274,1751405441136,-460.0,0.00017539,2]
[368945276,1751405441146,-460.0,0.00017539,2]
[368945278,1751405441156,-497.57,0.00017539,2]
[368945280,1751405441166,-507.03,0.00017539,2]
[368945282,1751405441175,-460.0,0.00017539,2]
[368945284,1751405441184,-460.0,0.00017539,2]
[368945286,1751405441194,-460.0,0.00017539,2]
[368945288,1751405441204,-460.0,0.00017539,2]
[368945290,1751405441214,-460.0,0.00017539,2]
[368945292,1751405441224,-460.0,0.00017539,2]
[368945294,1751405441233,-460.0,0.00017539,2]
[368945296,1751405441244,-460.0,0.00017539,2]
[368945298,1751405441254,-460.51,0.00017539,2]
[368945300,1751405441264,-460.0,0.00017539,2]
[368945302,1751405441273,-460.0,0.00017539,2]
[368945304,1751405441283,-460.0,0.00017539,2]
[368945306,1751405441293,-460.0,0.00017539,2]
[368945308,1751405441303,-460.0,0.00017539,2]
[368945310,1751405441313,-460.0,0.00017539,2]
[368945312,1751405441323,-460.0,0.00017539,2]
[368945314,1751405441332,-460.0,0.00017539,2]
[368945316,1751405441343,-460.0,0.00017539,2]
[368945318,1751405441352,-570.58,0.00017539,2]
[368945320,1751405441362,-460.0,0.0001754,2]
[368945322,1751405441371,-460.0,0.0001754,2]
[368945324,1751405441381,-460.0,0.0001754,2]
[368945326,1751405441391,-460.0,0.0001754,2]
[368945328,1751405441401,-460.0,0.0001754,2]
[368945330,1751405441410,-460.0,0.0001754,2]
[368945331,1751405441419,-460.0,0.0001754,2]
[368945334,1751405441429,-460.0,0.0001754,2]
[368945336,1751405441439,-460.0,0.0001754,2]
[368945338,1751405441449,-460.0,0.0001754,2]
[368945340,1751405441458,-460.0,0.0001754,2]
[368945341,1751405441467,-460.0,0.0001754,2]
[368945343,1751405441477,-460.0,0.0001754,2]
[368945345,1751405441490,-460.0,0.0001754,2]
[368945347,1751405441500,-460.0,0.0001754,2]
[368945349,1751405441509,-460.0,0.0001754,2]
[368945351,1751405441519,-460.0,0.0001754,2]
[368945353,1751405441529,-460.0,0.0001754,2]
[368945355,1751405441539,-460.0,0.0001754,2]
[368945358,1751405441551,-460.0,0.0001754,2]
[368945359,1751405441560,-460.0,0.0001754,2]
[368945361,1751405441570,-460.0,0.0001754,2]
[368945363,1751405441580,-460.0,0.0001754,2]
[368945365,1751405441590,-661.76,0.0001754,2]
[368945368,1751405441600,-460.0,0.0001754,2]
[368945370,1751405441610,-460.0,0.0001754,2]
[368945372,1751405441620,-626.22,0.0001754,2]
[368945373,1751405441629,-460.0,0.0001754,2]
[368945375,1751405441639,-460.0,0.0001754,2]
[368945377,1751405441649,-460.0,0.0001754,2]
[368945380,1751405441659,-460.0,0.0001754,2]
[368945382,1751405441668,-460.0,0.0001754,2]
[368945384,1751405441678,-460.0,0.00017541,2]
[368945386,1751405441688,-460.0,0.00017541,2]
[368945388,1751405441698,-460.0,0.00017541,2]
[368945390,1751405441707,-460.0,0.00017543,2]
[368945392,1751405441717,-460.0,0.00017813,2]
[368945393,1751405441726,-460.0,0.00017813,2]
[368945395,1751405441736,-497.57,0.00017813,2]
[368945397,1751405441746,-507.03,0.00017813,2]
[368945399,1751405441755,-460.0,0.00017813,2]
[368945401,1751405441766,-460.0,0.00017813,2]
[368945403,1751405441775,-460.0,0.00017813,2]
[368945405,1751405441785,-460.0,0.00017813,2]
[368945407,1751405441796,-460.0,0.00017813,2]
[368945409,1751405441805,-460.0,0.00017813,2]
[368945411,1751405441814,-460.0,0.00017813,2]
[368945413,1751405441825,-460.0,0.00017813,2]
[368945415,1751405441835,-225.15,0.00017813,2]
[368945417,1751405441844,-460.0,0.00017813,2]
[368945419,1751405441857,-460.0,0.00017813,2]
[368945422,1751405441866,-460.0,0.00017813,2]
[368945423,1751405441876,-460.0,0.00017813,2]
[368945425,1751405441885,-460.0,0.00017813,2]
[368945427,1751405441896,-460.0,0.00017813,2]
[368945430,1751405441906,-296.53320115,0.00017813,2]
[368945432,1751405441915,-460.0,0.00017813,2]
[368945434,1751405441925,-570.58,0.00017813,2]
[368945435,1751405441935,-608.00487168,0.00017814,2]
[368945437,1751405441945,-460.0,0.00017814,2]
[368945439,1751405441954,-460.0,0.00017814,2]
[368945441,1751405441963,-460.0,0.00017814,2]
[368945444,1751405441973,-376.87900346,0.00017814,2]
[368945446,1751405441982,-460.0,0.00017814,2]
[368945447,1751405441992,-460.0,0.00017814,2]
[368945450,1751405442002,-460.0,0.00017814,2]
[368945451,1751405442011,-460.0,0.00017814,2]
[368945453,1751405442021,-308.08565693,0.00017814,2]
[368945455,1751405442030,-460.0,0.00017814,2]
[368945457,1751405442039,-460.0,0.00017814,2]
[368945459,1751405442050,-460.0,0.00017814,2]
[368945461,1751405442059,-460.0,0.00017814,2]
[368945463,1751405442069,-460.0,0.00017814,2]
[368945465,1751405442078,-460.0,0.00017814,2]
[368945467,1751405442087,-460.0,0.00017814,2]
[368945469,1751405442096,-460.0,0.00017814,2]
[368945471,1751405442106,-460.0,0.00017814,2]
[368945473,1751405442116,-460.0,0.00017814,2]
[368945475,1751405442125,-460.0,0.00017814,2]
[368945477,1751405442135,-460.0,0.00017814,2]
[368945479,1751405442144,-661.76,0.00017814,2]
[368945481,1751405442153,-460.0,0.00017814,2]
[368945483,1751405442162,-626.22,0.00017814,2]
[368945485,1751405442171,-460.0,0.00017814,2]
[368945487,1751405442181,-460.0,0.00017814,2]
[368945489,1751405442190,-460.0,0.00017814,2]
[368945491,1751405442199,-460.0,0.00017814,2]
[368945493,1751405442208,-460.0,0.00017815,2]
[368945495,1751405442219,-460.0,0.00017815,2]
[368945497,1751405442227,-460.0,0.00017817,2]
[368945499,1751405442236,-1000.0,0.00017821,2]
[368945501,1751405442245,-1000.0,0.00017821,2]
[368945503,1751405442254,-500.0,0.00017968,2]
[368945505,1751405442263,-515.15444621,0.00017969,2]
[368945507,1751405442272,-500.0,0.00017969,2]
[368945508,1751405442282,-500.0,0.00017969,2]
[368945510,1751405442291,-500.0,0.00018027,2]
[368945512,1751405442301,-569.46,0.00018078,3]
[368945515,1751405442310,-460.0,0.00018087,2]
[368945516,1751405442320,-460.0,0.00018087,2]
[368945518,1751405442329,-497.57,0.00018087,2]
[368945520,1751405442340,-507.03,0.00018087,2]
[368945522,1751405442351,-525.68,0.00018087,2]
[368945524,1751405442361,-460.0,0.00018087,2]
[368945526,1751405442370,-460.0,0.00018087,2]
[368945528,1751405442380,-216.72,0.00018087,2]
[368945530,1751405442390,-221.25,0.00018087,2]
[368945532,1751405442399,-460.0,0.00018087,2]
[368945535,1751405442411,-460.0,0.00018087,2]
[368945536,1751405442421,-460.0,0.00018087,2]
[368945538,1751405442431,-460.0,0.00018087,2]
[368945540,1751405442441,-460.0,0.00018087,2]
[368945542,1751405442450,-460.0,0.00018087,2]
[368945544,1751405442460,-460.0,0.00018087,2]
[368945546,1751405442469,-460.0,0.00018087,2]
[368945548,1751405442479,-570.58,0.00018087,2]
[368945551,1751405442494,-460.0,0.00018088,2]
[368945552,1751405442503,-460.0,0.00018088,2]
[368945554,1751405442512,-271.2,0.00018088,2]
[368945556,1751405442521,-460.0,0.00018088,2]
[368945558,1751405442531,-460.0,0.00018088,2]
[368945560,1751405442540,-460.0,0.00018088,2]
[368945562,1751405442550,-460.0,0.00018088,2]
[368945564,1751405442559,-460.0,0.00018088,2]
[368945566,1751405442568,-460.0,0.00018088,2]
[368945569,1751405442579,-460.0,0.00018088,2]
[368945570,1751405442588,-515.2,0.00018088,2]
[368945573,1751405442598,-460.0,0.00018088,2]
[368945575,1751405442608,-460.0,0.00018088,2]
[368945576,1751405442617,-460.0,0.00018088,2]
[368945578,1751405442626,-460.0,0.00018088,2]
[368945580,1751405442636,-661.76,0.00018088,2]
[368945582,1751405442645,-460.0,0.00018088,2]
[368945584,1751405442655,-626.22,0.00018088,2]
[368945587,1751405442664,-189.63,0.00018088,2]
[368945589,1751405442674,-460.0,0.00018088,2]
[368945590,1751405442683,-460.0,0.00018088,2]
[368945592,1751405442692,-460.0,0.00018088,2]
[368945595,1751405442702,-460.0,0.00018089,2]
[368945597,1751405442711,-518.88,0.00018091,2]
[368945601,1751405442720,-500.0,0.00018109,2]
[368945604,1751405442730,-500.0,0.00018179,2]
[368945606,1751405442739,-207.33486677,0.00018179,2]
[368945607,1751405442748,-502.25919006,0.00018179,2]
[368945609,1751405442757,-500.0,0.00018179,2]
[368945611,1751405442767,-500.0,0.00018179,2]
[368945615,1751405442776,-500.0,0.00018179,2]
[368945617,1751405442786,-500.0,0.00018179,2]
[368945621,1751405442795,-500.0,0.00018179,2]
[368945623,1751405442805,-500.0,0.00018179,2]
[368945625,1751405442814,-500.0,0.00018179,2]
[368945627,1751405442824,-284.73,0.00018351,3]
[368945629,1751405442833,-854.19,0.00018351,3]
[368945631,1751405442842,-211.81,0.00018352,3]
[368945633,1751405442852,-189.82,0.00018352,3]
[368945635,1751405442861,-326.05,0.00018353,3]
[368945637,1751405442871,-163.02,0.00018353,3]
[368945639,1751405442882,-489.11,0.00018353,3]
[368945641,1751405442891,-161.56,0.00018353,3]
[368945643,1751405442900,-484.7,0.00018353,3]
[368945645,1751405442910,-569.46,0.00018353,3]
[368945647,1751405442919,-215.01728679,0.00018354,2]
[368945649,1751405442928,-230.32585361,0.00018354,2]
[368945651,1751405442937,-837.20943635,0.00018354,2]
[368945653,1751405442948,-160.0,0.00018354,2]
[368945655,1751405442958,-460.0,0.00018361,2]
[368945657,1751405442967,-347.04,0.00018361,2]
[368945659,1751405442976,-497.57,0.00018361,2]
[368945661,1751405442986,-507.03,0.00018361,2]
[368945663,1751405442996,-460.0,0.00018361,2]
[368945665,1751405443005,-460.0,0.00018361,2]
[368945667,1751405443015,-460.0,0.00018361,2]
[368945669,1751405443024,-460.0,0.00018361,2]
[368945671,1751405443033,-460.0,0.00018361,2]
[368945673,1751405443042,-460.0,0.00018361,2]
[368945675,1751405443052,-460.0,0.00018361,2]
[368945677,1751405443062,-460.0,0.00018361,2]
[368945679,1751405443072,-570.58,0.00018361,2]
[368945681,1751405443083,-380.04,0.00018362,2]
[368945683,1751405443093,-606.04914764,0.00018362,2]
[368945685,1751405443102,-460.0,0.00018362,2]
[368945687,1751405443112,-460.0,0.00018362,2]
[368945689,1751405443122,-460.0,0.00018362,2]
[368945691,1751405443132,-460.0,0.00018362,2]
[368945693,1751405443142,-460.0,0.00018362,2]
[368945695,1751405443151,-460.48,0.00018362,2]
[368945696,1751405443160,-460.0,0.00018362,2]
[368945698,1751405443170,-460.0,0.00018362,2]
[368945700,1751405443179,-245.78,0.00018362,2]
[368945702,1751405443189,-661.76,0.00018362,2]
[368945704,1751405443198,-498.17,0.00018362,2]
[368945706,1751405443207,-626.22,0.00018362,2]
[368945723,1751405443309,-542.66,0.00018362,2]
[368945727,1751405443319,-460.0,0.00018362,2]
[368945730,1751405443328,-460.0,0.00018362,2]
[368945733,1751405443337,-284.68,0.00018363,2]
[368945735,1751405443346,-420.83765646,0.00018368,2]
[368945737,1751405443355,-1000.0,0.00018368,2]
[368945738,1751405443364,-1000.0,0.00018516,2]
[368945740,1751405443373,-1000.0,0.00018517,2]
[368945742,1751405443382,-1000.0,0.00018517,2]
[368945743,1751405443391,-1000.0,0.00018575,2]
[368945745,1751405443401,-182.56,0.00018635,2]
[368945747,1751405443410,-497.57,0.00018635,2]
[368945748,1751405443419,-507.03,0.00018635,2]
[368945751,1751405443428,-460.0,0.00018635,2]
[368945753,1751405443438,-460.0,0.00018635,2]
[368945754,1751405443447,-317.44,0.00018635,2]
[368945756,1751405443456,-460.0,0.00018635,2]
[368945758,1751405443465,-460.0,0.00018635,2]
[368945760,1751405443475,-460.0,0.00018635,2]
[368945761,1751405443483,-460.0,0.00018635,2]
[368945763,1751405443493,-460.0,0.00018635,2]
[368945765,1751405443502,-570.58,0.00018635,2]
[368945766,1751405443511,-460.0,0.00018636,2]
[368945768,1751405443520,-460.0,0.00018636,2]
[368945770,1751405443529,-460.0,0.00018636,2]
[368945772,1751405443539,-460.0,0.00018636,2]
[368945773,1751405443548,-431.41,0.00018636,2]
[368945775,1751405443558,-460.0,0.00018636,2]
[368945777,1751405443567,-460.0,0.00018636,2]
[368945778,1751405443576,-661.76,0.00018636,2]
[368945780,1751405443586,-626.22,0.00018636,2]
[368945782,1751405443595,-460.0,0.00018636,2]
[368945784,1751405443604,-460.0,0.00018636,2]
[368945786,1751405443614,-1000.0,0.00018657,2]
[368945787,1751405443623,-1000.0,0.00018727,2]
[368945789,1751405443633,-1052.75765332,0.00018727,2]
[368945791,1751405443642,-734.07220278,0.00018727,2]
[368945793,1751405443657,-265.92779722,0.00018727,2]
[368945795,1751405443667,-355.68245325,0.00018727,2]
[368945797,1751405443676,-956.96597759,0.00018727,2]
[368945798,1751405443686,-538.25510388,0.00018727,2]
[368945800,1751405443695,-1000.0,0.00018727,2]
[368945802,1751405443705,-205.95042647,0.000189,2]
[368945804,1751405443714,-215.19023844,0.000189,2]
[368945805,1751405443724,-473.12800315,0.00018909,2]
[368945807,1751405443735,-24.44199685,0.00018909,2]
[368945809,1751405443744,-507.03,0.00018909,2]
[368945811,1751405443754,-460.0,0.00018909,2]
[368945813,1751405443764,-460.0,0.00018909,2]
[368945814,1751405443773,-150.22770706,0.00018909,2]
[368945816,1751405443784,-309.77229294,0.00018909,2]
[368945818,1751405443794,-173.07038395,0.00018909,2]
[368945821,1751405443814,-286.92961605,0.00018909,2]
[368945823,1751405443823,-460.0,0.00018909,2]
[368945824,1751405443832,-460.0,0.00018909,2]
[368945826,1751405443844,-460.0,0.00018909,2]
[368945828,1751405443854,-570.58,0.00018909,2]
[368945830,1751405443864,-460.0,0.0001891,2]
[368945831,1751405443873,-286.14,0.0001891,2]
[368945833,1751405443883,-573.96,0.0001891,2]
[368945835,1751405443892,-151.0,0.0001891,2]
[368945837,1751405443902,-152.508771,0.0001891,2]
[368945839,1751405443912,-151.0,0.0001891,2]
[368945840,1751405443922,-460.0,0.0001891,2]
[368945842,1751405443932,-151.0,0.0001891,2]
[368945844,1751405443941,-460.0,0.0001891,2]
[368945846,1751405443950,-258.4,0.0001891,2]
[368945848,1751405443959,-192.128096,0.0001891,2]
[368945849,1751405443968,-192.128096,0.0001891,2]
[368945851,1751405443977,-661.76,0.0001891,2]
[368945853,1751405443987,-626.22,0.0001891,2]
[368945855,1751405443996,-460.0,0.0001891,2]
[368945857,1751405444006,-460.0,0.0001891,2]
[368945858,1751405444015,-151.0,0.00018911,2]
[368945860,1751405444024,-151.0,0.00018911,2]
[368945862,1751405444034,-151.0,0.00018911,2]
[368945864,1751405444043,-151.0,0.00018911,2]
[368945866,1751405444052,-1000.0,0.00019063,2]
[368945867,1751405444062,-959.65907224,0.00019065,2]
[368945869,1751405444072,-1000.0,0.00019123,2]
[368945871,1751405444082,-215.19023823,0.00019141,2]
[368945873,1751405444091,-497.57,0.00019183,2]
[368945875,1751405444101,-507.03,0.00019183,2]
[368945877,1751405444110,-460.0,0.00019183,2]
[368945879,1751405444119,-460.0,0.00019183,2]
[368945881,1751405444128,-460.0,0.00019183,2]
[368945882,1751405444137,-151.0,0.00019183,2]
[368945884,1751405444146,-219.44,0.00019183,2]
[368945886,1751405444156,-460.0,0.00019183,2]
[368945888,1751405444165,-151.0,0.00019183,2]
[368945890,1751405444175,-151.0,0.00019183,2]
[368945891,1751405444184,-151.0,0.00019183,2]
[368945893,1751405444194,-460.0,0.00019183,2]
[368945895,1751405444203,-151.0,0.00019183,2]
[368945897,1751405444212,-151.0,0.00019183,2]
[368945899,1751405444222,-155.643085,0.00019183,2]
[368945900,1751405444231,-460.0,0.00019183,2]
[368945902,1751405444240,-570.58,0.00019183,2]
[368945904,1751405444249,-460.0,0.00019184,2]
[368945906,1751405444259,-460.0,0.00019184,2]
[368945908,1751405444268,-460.0,0.00019184,2]
[368945909,1751405444278,-661.76,0.00019184,2]
[368945911,1751405444289,-626.22,0.00019184,2]
[368945913,1751405444299,-460.0,0.00019184,2]
[368945914,1751405444307,-289.50489814,0.00019184,2]
[368945917,1751405444320,-170.49510186,0.00019184,2]
[368945918,1751405444330,-1000.0,0.00019205,2]
[368945920,1751405444339,-131.81034024,0.00019275,2]
[368945922,1751405444350,-868.18965976,0.00019275,2]
[368945924,1751405444359,-151.0,0.00019338,2]
[368945926,1751405444372,-151.0,0.00019338,2]
[368945928,1751405444385,-151.0,0.00019338,2]
[368945930,1751405444398,-151.0,0.00019338,2]
[368945933,1751405444411,-151.0,0.00019338,2]
[368945935,1751405444423,-151.0,0.00019338,2]
[368945937,1751405444434,-215.19023823,0.00019383,2]
[368945939,1751405444445,-497.57,0.00019457,2]
[368945941,1751405444459,-507.03,0.00019457,2]
[368945943,1751405444470,-31.36685742,0.00019457,2]
[368945945,1751405444489,-428.63314258,0.00019457,2]
[368945947,1751405444501,-460.0,0.00019457,2]
[368945949,1751405444514,-460.0,0.00019457,2]
[368945952,1751405444528,-460.0,0.00019457,2]
[368945954,1751405444539,-460.0,0.00019457,2]
[368945956,1751405444552,-460.0,0.00019457,2]
[368945958,1751405444566,-570.58,0.00019457,2]
[368945960,1751405444579,-151.0,0.00019458,2]
[368945962,1751405444591,-151.0,0.00019458,2]
[368945964,1751405444602,-151.0,0.00019458,2]
[368945966,1751405444613,-151.0,0.00019458,2]
[368945968,1751405444625,-175.381672,0.00019458,2]
[368945970,1751405444637,-175.381672,0.00019458,2]
[368945972,1751405444648,-279.406313,0.00019458,2]
[368945974,1751405444662,-151.0,0.00019458,2]
[368945976,1751405444675,-151.0,0.00019458,2]
[368945978,1751405444687,-151.0,0.00019458,2]
[368945980,1751405444698,-151.0,0.00019458,2]
[368945982,1751405444710,-151.0,0.00019458,2]
[368945984,1751405444721,-151.0,0.00019458,2]